Cogmind - Beta 13 @@@ ROGUE MODE // 2024.04.13 @ 02:40:32 Player: kucifra Result: Escaped! Performance ------------- Evolutions (9) 4500 Regions Visited (12) 2400 Robots Destroyed (62) 310 Value Destroyed (1421) 1421 Prototype IDs (25) 500 Alien Tech Used (0) 0 Bonus (3466) 3466 TOTAL SCORE: 12597 Bonus ------- High Alert Combat Kills 2 Follower Combat Kills 164 Aligned with FarCom 300 Win 3000 Cogmind --------- Core Integrity 1391/1600 Matter 263/300 Energy 148/150 System Corruption 8% Temperature Cool (4) Movement Flying (37) Location To Epsilon Eridani Parts ------- > --- POWER (2) -------- Micro Antimatter Reactor > --- PROPULSION (7) --- Improved VTOL Module Impulse Thruster Array > --- UTILITY (14) ----- Structural Scanner Advanced Visual Processing Unit Improved Signal Interpreter Hacking Suite Hacking Suite Hacking Suite Improved Hacking Suite Improved Hacking Suite > --- WEAPON (2) ------- Mini Grenade Launcher > --- INVENTORY (5) ---- Light Quantum Reactor Light Quantum Reactor Light Quantum Reactor Peak State ------------ > --- POWER ------------ Light Antimatter Reactor Micro Antimatter Reactor > --- PROPULSION ------- Cesium-ion Thruster Improved VTOL Module Xenon Bombardment Thruster Xenon Bombardment Thruster Field Propulsion Drive Impulse Thruster Array > --- UTILITY ---------- Structural Scanner Machine Analyzer Advanced Visual Processing Unit Improved Signal Interpreter Cloak of Protection Propulsion Shielding Improved Propulsion Shielding Hacking Suite Hacking Suite Hacking Suite Improved Hacking Suite Improved Hacking Suite Improved Hacking Suite System Shield > --- WEAPON ----------- Mini Grenade Launcher Power Sword > --- INVENTORY -------- Light Quantum Reactor Light Quantum Reactor Light Quantum Reactor [Rating: 110] Favorites ----------- Power Light Nuclear Core Engine Light Ion Engine Power Core Light Nuclear Core Reactor Micro Antimatter Reactor Propulsion Xenon Bombardment Thruster Treads Light Treads Leg Aluminum Leg Flight Unit Xenon Bombardment Thruster Utility Hacking Suite Device Structural Scanner Storage Large Storage Unit Processor Machine Analyzer Hackware Hacking Suite Protection Improved Light Armor Plating Weapon Mini Grenade Launcher Energy Gun Medium Laser Ballistic Gun Light Assault Rifle Ballistic Cannon Improved Light Cannon Launcher Mini Grenade Launcher Slashing Weapon Axe Build | -11 -10 -10 -10 -9 -8 -7 -6 -5 -4 -3 -2 -1 ------- Run | Yrd Mat Min Exi Min Mat Fac Fac Fac Fac Res Res Acc Slots Evolved 18 | . . . . . 4 2 2 2 2 2 2 2 Power 1 | . . . . . . . . . 1 . . . Propulsion 5 | . . . . . 1 1 . 1 1 . 1 . Utility 12 | . . . . . 3 1 2 1 . 2 1 2 Weapon . | . . . . . . . . . . . . . Parts Attached 100 | 4 4 . . 5 28 20 7 9 3 7 6 7 Power 11 | 1 . . . . 3 1 . . 1 2 1 2 Engine 2 | 1 . . . . 1 . . . . . . . Core 4 | . . . . . 2 1 . . 1 . . . Reactor 5 | . . . . . . . . . . 2 1 2 Propulsion 24 | 1 2 . . . 6 5 2 3 1 1 1 2 Treads 8 | . 2 . . . 6 . . . . . . . Leg 1 | 1 . . . . . . . . . . . . Wheel . | . . . . . . . . . . . . . Hover . | . . . . . . . . . . . . . Flight 15 | . . . . . . 5 2 3 1 1 1 2 Utility 39 | . 2 . . 1 4 10 5 5 1 4 4 3 Device 10 | . . . . . 2 3 1 . . 2 1 1 Storage 2 | . 2 . . . . . . . . . . . Processor 6 | . . . . 1 2 2 . . . . 1 . Hackware 9 | . . . . . . 2 3 2 . 1 . 1 Protection 12 | . . . . . . 3 1 3 1 1 2 1 Artifact . | . . . . . . . . . . . . . Weapon 26 | 2 . . . 4 15 4 . 1 . . . . Energy Gun 2 | 2 . . . . . . . . . . . . Energy Cannon . | . . . . . . . . . . . . . Ballistic Gun 7 | . . . . 1 5 1 . . . . . . Ballistic Cannon 4 | . . . . 2 2 . . . . . . . Launcher 7 | . . . . 1 5 1 . . . . . . Special Weapon . | . . . . . . . . . . . . . Impact Weapon . | . . . . . . . . . . . . . Slashing Weapon 6 | . . . . . 3 2 . 1 . . . . Piercing Weapon . | . . . . . . . . . . . . . Special Melee Weapon . | . . . . . . . . . . . . . Unidentified Prototypes 2 | . . . . . 1 1 . . . . . . Parts Lost 31 | . . . . . 13 . . 1 1 . 4 12 Power 3 | . . . . . 1 . . . . . 1 1 Propulsion 11 | . . . . . 5 . . 1 . . 1 4 Utility 10 | . . . . . 1 . . . 1 . 2 6 Weapon 7 | . . . . . 6 . . . . . . 1 Highest Loss Streak 12 | . . . . . 10 . . 1 1 . 2 12 To Critical Strikes . | . . . . . . . . . . . . . Average Slot Usage (%) 97 | . 91 100 100 100 97 96 99 98 99 95 94 91 Engine 4 | . 14 14 14 14 1 . . . . . . . Core 4 | . . . . . 7 7 6 5 10 6 . . Treads 14 | . 28 28 28 28 26 . . . . . . . Flight 12 | . . . . . . 30 26 28 31 23 26 22 Device 5 | . . . . . 9 7 7 8 4 2 4 7 Storage 8 | . 20 28 28 19 9 . . . . . . . Processor 13 | . . . . 8 26 13 13 11 10 9 11 11 Hackware 10 | . . . . . . 9 22 26 26 28 26 27 Protection 4 | . . . . . . 11 8 3 5 11 7 7 Energy Gun 5 | . 28 28 28 9 . . . . . . . . Ballistic Gun 3 | . . . . 8 8 1 . . . . . . Ballistic Cannon 2 | . . . . 8 3 . . . . . . . Launcher 3 | . . . . . 5 5 6 5 5 4 4 4 Slashing Weapon 2 | . . . . . . 6 6 5 5 4 4 3 Naked Turns . | . . . . . . . . . . . . . Heaviest Build 36 | 7 32 32 32 33 35 17 18 21 19 30 34 36 Greatest Support 68 | 10 40 40 40 40 68 19 22 30 35 41 46 45 Greatest Overweight (x) 1 | . . . . . 1 . . . . . . . Average Overweight (x) . | . . . . . . . . . . . . . Largest Inventory Capacity 15 | 5 15 15 15 15 15 15 5 5 5 5 5 5 Average Capacity 10 | 5 11 15 15 15 15 5 5 5 5 5 5 5 Most Carried 15 | 4 9 10 11 15 15 12 5 5 5 5 4 3 Average Carried 8 | 3 5 9 10 14 14 4 4 3 4 4 3 1 Final Capacity 15 | 5 15 15 15 15 15 5 5 5 5 5 5 5 Final Carried 15 | 4 9 10 11 15 11 5 5 5 4 5 4 3 Class Distribution -------------------- 39% | Mutant 21% | Hacker-Scout 9% | Skirmisher 6% | Hacker-Ninja 6% | Wizard-Ninja 5% | Wizard-Scout 3% | Scavenger-Scout Dominant Class ---------------- Mutant | -10/Materials Mutant | -10/Mines Mutant | -10/Exiles Mutant | -9/Mines Mutant | -8/Materials Hacker-Scout | -7/Factory Hacker-Scout | -6/Factory Hacker-Ninja | -5/Factory Hacker-Scout | -4/Factory Wizard-Scout | -3/Research Wizard-Scout | -2/Research Wizard-Ninja | -1/Access Resources | -11 -10 -10 -10 -9 -8 -7 -6 -5 -4 -3 -2 -1 ----------- Run | Yrd Mat Min Exi Min Mat Fac Fac Fac Fac Res Res Acc Matter Collected 1815 | 208 72 . . 60 767 202 168 50 18 132 105 33 Remotely . | . . . . . . . . . . . . . Salvage Created 2043 | . 75 . . 65 708 202 303 . 18 214 354 104 Parts 128 | . 7 . . 7 45 17 11 . 5 16 12 8 Haulers Intercepted 9 | . 1 . . . 2 2 3 . . 1 . . Recyclers Shooed 3 | . . . . . 2 . . . . 1 . . Parts Field Recycled . | . . . . . . . . . . . . . Retrieved Matter . | . . . . . . . . . . . . . Parts Self-Destructed . | . . . . . . . . . . . . . Prevented . | . . . . . . . . . . . . . Kills | -11 -10 -10 -10 -9 -8 -7 -6 -5 -4 -3 -2 -1 ------- Run | Yrd Mat Min Exi Min Mat Fac Fac Fac Fac Res Res Acc Combat Hostiles Destroyed 26 | . . . . 3 20 . . . . . . 3 Guns 6 | . . . . 2 4 . . . . . . . Cannons 4 | . . . . . 4 . . . . . . . AOE 16 | . . . . 1 12 . . . . . . 3 Classes Destroyed 11 | . 2 . . 2 6 1 . . . . . . Worker 2 | . . . . . 2 . . . . . . . Builder 8 | . . . . . 3 . . . 1 3 1 . Hauler 9 | . 1 . . . 2 2 3 . . 1 . . Recycler 4 | . . . . . 2 . . . . . 2 . Operator 4 | . . . . . . 2 1 . . 1 . . Watcher 9 | . 1 . . . 3 2 . . . 1 1 1 Swarmer 13 | . . . . 2 8 . . . . . . 3 Grunt 8 | . . . . 1 7 . . . . . . . Brawler 1 | . . . . . 1 . . . . . . . Sentry 3 | . . . . . 3 . . . . . . . Heavy 1 | . . . . . 1 . . . . . . . Best Kill Streak 12 | . 1 . . 1 12 2 1 . 1 2 4 3 Combat Bots Only 8 | . . . . 1 8 . . . . . . 3 Max Kills in Single Turn 3 | . 1 . . 1 3 1 1 . 1 1 1 2 Gunslinging . | . . . . . . . . . . . . . Exploded 2 | . . . . 1 2 . . . . . . 2 Melee . | . . . . . . . . . . . . . Uniques/NPCs Destroyed . | . . . . . . . . . . . . . Combat | -11 -10 -10 -10 -9 -8 -7 -6 -5 -4 -3 -2 -1 -------- Run | Yrd Mat Min Exi Min Mat Fac Fac Fac Fac Res Res Acc Hostile Shots Fired 335 | . . . . 22 129 45 8 9 14 8 63 37 Missed 144 | . . . . 5 47 28 7 4 6 3 30 14 Damage Taken 4150 | . . . . 187 1919 118 5 271 103 107 617 823 Core 718 | . . . . 37 283 41 . 78 . . 70 209 Absorbed by Shields . | . . . . . . . . . . . . . Redirected to Shielding 189 | . . . . . . . . . . 6 77 106 Regen/Repaired (Parts) 145 | . . . . . . . . 76 . . . 69 Core Remaining (%) 90 | 100 . . . 85 48 94 100 92 100 100 95 86 Volleys Fired 138 | . 4 . . 17 107 . . . . 5 . 5 Largest 2 | . 2 . . 2 2 . . . . 1 . 1 Hottest 90 | . 90 . . 90 64 . . . . 30 . 30 Shots Fired 184 | . 8 . . 21 144 . . . . 5 . 6 Gun 101 | . 8 . . 20 73 . . . . . . . Cannon 43 | . . . . . 43 . . . . . . . Launcher 40 | . . . . 1 28 . . . . 5 . 6 Special . | . . . . . . . . . . . . . Kinetic 116 | . . . . . 116 . . . . . . . Thermal 21 | . 4 . . 17 . . . . . . . . Explosive 40 | . . . . 1 28 . . . . 5 . 6 Electromagnetic 7 | . 4 . . 3 . . . . . . . . Robot Hit Streak 31 | . 4 . . 6 31 . . . . . . 2 Robot Miss Streak 6 | . 1 . . 6 3 . . . . . . 2 Penetration Max . | . . . . . . . . . . . . . Secondary Targets 1 | . . . . 1 . . . . . . . . Max Gunslinging Chain 1 | . . . . 1 . . . . . . . . Shots Hit Robots 163 | . 6 . . 9 103 7 16 . 2 9 6 5 Core Hits 92 | . 3 . . 5 58 4 6 . 1 4 3 8 Critical Kills . | . . . . . . . . . . . . . Critical Parts Destroyed . | . . . . . . . . . . . . . Critical Strikes 6 | . 1 . . . 2 . 2 . . . 1 . Burn 1 | . 1 . . . . . . . . . . . Blast 2 | . . . . . 2 . . . . . . . Sever 3 | . . . . . . . 2 . . . 1 . Melee Attacks 189 | . . . . . 15 26 60 10 10 30 17 21 Impact . | . . . . . . . . . . . . . Slashing 189 | . . . . . 15 26 60 10 10 30 17 21 Piercing . | . . . . . . . . . . . . . Sneak Attacks 16 | . . . . . 1 2 3 . 1 6 3 . Combat Hostiles . | . . . . . . . . . . . . . Follow-up Attacks . | . . . . . . . . . . . . . Damage Inflicted 5931 | . 95 . . 156 2872 343 746 . 158 713 437 411 Guns 1004 | . 95 . . 120 789 . . . . . . . Cannons 794 | . . . . . 794 . . . . . . . Explosions 1461 | . . . . 23 1188 . . . . . . 250 Melee 2659 | . . . . . 101 343 746 . 158 713 437 161 Ramming 13 | . . . . 13 . . . . . . . . Kinetic 1583 | . . . . . 1583 . . . . . . . Thermal 127 | . 38 . . 89 . . . . . . . . Explosive 1461 | . . . . 23 1188 . . . . . . 250 Electromagnetic 88 | . 57 . . 31 . . . . . . . . Impact . | . . . . . . . . . . . . . Slashing 2659 | . . . . . 101 343 746 . 158 713 437 161 Piercing . | . . . . . . . . . . . . . Highest Corruption 8 | . . . . . 1 . . . . . 4 8 Average Corruption 1 | . . . . . 1 . . . . . 2 7 Corruption Purged . | . . . . . . . . . . . . . Corruption Blocked . | . . . . . . . . . . . . . Effects 13 | . . . . . 9 . . . . . 1 3 Message Errors 3 | . . . . . 2 . . . . . 1 . Matter Fused 2 | . . . . . 2 . . . . . . . Heat Flow Errors 1 | . . . . . 1 . . . . . . . Data Loss (minor) 2 | . . . . . 1 . . . . . . 1 Data Loss (major) 3 | . . . . . 2 . . . . . . 1 Misfires 1 | . . . . . . . . . . . . 1 Weapon Failures 1 | . . . . . 1 . . . . . . . Overload Shots . | . . . . . . . . . . . . . Overflow Damage 431 | . . . . . 34 64 25 . 35 177 72 24 Projectiles 24 | . . . . . 24 . . . . . . . Explosions 34 | . . . . . 10 . . . . . . 24 Melee 373 | . . . . . . 64 25 . 35 177 72 . Knockbacks 9 | . . . . . 9 . . . . . . . Impact . | . . . . . . . . . . . . . Kinetic 9 | . . . . . 9 . . . . . . . Secondary . | . . . . . . . . . . . . . Self-Inflicted Damage 207 | . . . . . 67 . . . . . . 140 Shots 5 | . . . . . 2 . . . . . . 3 Rammed 1 | . . . . 1 . . . . . . . . Targets Rammed 1 | . . . . 1 . . . . . . . . Kicked . | . . . . . . . . . . . . . Crushed . | . . . . . . . . . . . . . Highest Temperature 292 | . 60 . . 148 151 . . . 292 52 186 36 Average Temperature 54 | . 30 . . 62 18 . . . 116 11 81 8 Received Heat Transfer 513 | . . . . 30 444 30 . . . . 9 . Effects 1 | . . . . . . . . . 1 . . . Energy Bleed 1 | . . . . . . . . . 1 . . . Siege Activations . | . . . . . . . . . . . . . Robots Corrupted . | . . . . . . . . . . . . . Combat Hostiles . | . . . . . . . . . . . . . Parts Fried . | . . . . . . . . . . . . . Impact Corruptions . | . . . . . . . . . . . . . Robots Melted . | . . . . . . . . . . . . . Combat Hostiles . | . . . . . . . . . . . . . Parts Melted 2 | . 1 . . 1 . . . . . . . . Heat Transferred 444 | . 185 . . 259 . . . . . . . . Parts Sabotaged . | . . . . . . . . . . . . . Parts Stolen . | . . . . . . . . . . . . . Parts Stripped . | . . . . . . . . . . . . . Power Chain Reactions . | . . . . . . . . . . . . . Alert | -11 -10 -10 -10 -9 -8 -7 -6 -5 -4 -3 -2 -1 ------- Run | Yrd Mat Min Exi Min Mat Fac Fac Fac Fac Res Res Acc Peak Influence 474 | . 27 10 . 216 474 358 205 98 152 137 174 353 Initial 154 | . . 10 . . . 154 112 6 47 73 11 107 Average 124 | . 9 10 . 68 218 232 86 42 85 87 65 150 Maximum Alert Level 2 | . . . . 1 2 1 1 . . . . 1 Low Security (%) 80 | 100 100 100 . 81 62 25 97 100 100 100 100 91 Level 1 14 | . . . . 18 20 74 2 . . . . 8 Level 2 4 | . . . . . 16 . . . . . . . Level 3 . | . . . . . . . . . . . . . Level 4 . | . . . . . . . . . . . . . Level 5 . | . . . . . . . . . . . . . High Security . | . . . . . . . . . . . . . Max Security . | . . . . . . . . . . . . . Squads Dispatched 30 | . 1 . . . 4 4 11 4 1 3 1 1 Investigation 19 | . 1 . . . 3 3 7 3 1 . 1 . Extermination 4 | . . . . . . . 2 . . 1 . 1 Reinforcement 7 | . . . . . 1 1 2 1 . 2 . . Assault . | . . . . . . . . . . . . . Garrison . | . . . . . . . . . . . . . Intercept . | . . . . . . . . . . . . . Searches Triggered . | . . . . . . . . . . . . . Construction Impeded . | . . . . . . . . . . . . . Haulers Reinforced 1 | . . . . . . . 1 . . . . . Active Scanning Responses . | . . . . . . . . . . . . . Cargo Convoy Interrupts . | . . . . . . . . . . . . . Stealth | -11 -10 -10 -10 -9 -8 -7 -6 -5 -4 -3 -2 -1 --------- Run | Yrd Mat Min Exi Min Mat Fac Fac Fac Fac Res Res Acc Distress Signals 11 | . . . . . 4 . 3 . . . 2 2 Communications Jammed . | . . . . . . . . . . . . . Distress Signals . | . . . . . . . . . . . . . Times Spotted 114 | . 2 . . 8 34 9 7 6 7 8 18 15 Peak Tracking Total 9 | . 2 . . 9 5 4 6 4 5 2 8 8 Tactical Retreats 20 | . . . . 1 2 1 7 2 . . 3 4 Traps | -11 -10 -10 -10 -9 -8 -7 -6 -5 -4 -3 -2 -1 ------- Run | Yrd Mat Min Exi Min Mat Fac Fac Fac Fac Res Res Acc Traps Triggered 7 | . . . . . . 1 1 . . . 3 2 Indirectly . | . . . . . . . . . . . . . Trap Hack Attempts . | . . . . . . . . . . . . . Triggered . | . . . . . . . . . . . . . Disarmed . | . . . . . . . . . . . . . Reprogrammed . | . . . . . . . . . . . . . Reused . | . . . . . . . . . . . . . Traps Extracted . | . . . . . . . . . . . . . Installed . | . . . . . . . . . . . . . Triggered . | . . . . . . . . . . . . . Machines | -11 -10 -10 -10 -9 -8 -7 -6 -5 -4 -3 -2 -1 ---------- Run | Yrd Mat Min Exi Min Mat Fac Fac Fac Fac Res Res Acc Machines Disabled 10 | . . . . 2 7 . . . . 1 . . Max in Single Turn 2 | . . . . 1 2 . . . . 1 . . Garrison Access 3 | . . . . . . 1 . . 1 . . 1 Machines Repaired . | . . . . . . . . . . . . . Machines Dismantled . | . . . . . . . . . . . . . Machines Sabotaged . | . . . . . . . . . . . . . Overloaded Fab Kills . | . . . . . . . . . . . . . Hacking | -11 -10 -10 -10 -9 -8 -7 -6 -5 -4 -3 -2 -1 --------- Run | Yrd Mat Min Exi Min Mat Fac Fac Fac Fac Res Res Acc Machines Accessed 55 | . 2 . 1 1 7 10 13 8 5 4 . 4 Terminals 40 | . 2 . . . 7 8 9 5 3 4 . 2 Fabricators 7 | . . . . . . 1 3 2 1 . . . Repair Stations 2 | . . . . . . . . 1 . . . 1 Recycling Units . | . . . . . . . . . . . . . Scanalyzers 1 | . . . . . . . 1 . . . . . Garrison Access 3 | . . . . . . 1 . . 1 . . 1 Total Hacks 141 | . 11 . 1 1 16 22 32 24 11 15 . 8 Successful 96 | . 8 . 1 1 8 13 22 15 8 12 . 8 Failed 44 | . 3 . . . 8 9 10 9 3 2 . . Catastrophic 7 | . . . . . 1 2 1 3 . . . . Database Lockouts 1 | . . . . . . . . . . 1 . . Manual 88 | . 7 . 1 . 12 15 20 12 5 15 . 1 Terminals 106 | . 11 . . . 16 18 23 14 6 15 . 3 Fabricators 19 | . . . . . . 2 7 8 2 . . . Repair Stations 6 | . . . . . . . . 2 . . . 4 Recycling Units . | . . . . . . . . . . . . . Scanalyzers 2 | . . . . . . . 2 . . . . . Garrison Access 6 | . . . . . . 2 . . 3 . . 1 Terminal Hacks 47 | . 6 . 1 1 3 6 10 5 3 9 . 3 Record 4 | . 1 . . . . . . . 1 1 . 1 Part Schematic 1 | . . . . . . . 1 . . . . . Robot Analysis 5 | . 2 . . . . . 1 1 . 1 . . Open Door 2 | . . . . 1 . . . . . . . 1 Open DSF 2 | . . . . . . 1 1 . . . . . Level Access Points 6 | . . . . . 1 1 1 1 1 1 . . Branch Access Points 1 | . 1 . . . . . . . . . . . Emergency Access Points 1 | . 1 . . . . . . . . . . . Terminal Index 4 | . . . . . . . 1 1 1 1 . . Fabricator Index 1 | . . . . . . . . . . 1 . . Alert Level 3 | . . . . . 1 1 . . . 1 . . Unreport Threat 2 | . . . . . . . . 1 . 1 . . Maintenance Status 1 | . 1 . . . . . . . . . . . Recall Investigation 6 | . . . . . . . 3 1 . 1 . 1 Recall Extermination 3 | . . . . . . . 2 . . 1 . . Recall Reinforcements 2 | . . . . . . 2 . . . . . . Hauler Manifests 2 | . . . . . 1 1 . . . . . . Derelict Proto ID Bank 1 | . . . 1 . . . . . . . . . Fabricator Hacks 12 | . . . . . . . 6 4 2 . . . Load Schematic 6 | . . . . . . . 3 2 1 . . . Build 6 | . . . . . . . 3 2 1 . . . Repair Station Hacks 6 | . . . . . . . . 2 . . . 4 Scan Component 3 | . . . . . . . . 1 . . . 2 Repair 3 | . . . . . . . . 1 . . . 2 Recycling Unit Hacks . | . . . . . . . . . . . . . Scanalyzer 2 | . . . . . . . 2 . . . . . Insert Component 1 | . . . . . . . 1 . . . . . Analyze 1 | . . . . . . . 1 . . . . . Garrison Access Hacks 3 | . . . . . . 1 . . 1 . . 1 Seal Access 3 | . . . . . . 1 . . 1 . . 1 Unauthorized Hacks 26 | . 2 . . . 5 6 4 4 2 3 . . Terminals 26 | . 2 . . . 5 6 4 4 2 3 . . Assimilate 5 | . . . . . . 2 . 1 1 1 . . Botnet 15 | . 1 . . . 3 3 3 3 1 1 . . Operators 6 | . 1 . . . 2 1 1 . . 1 . . Fabricators . | . . . . . . . . . . . . . Repair Stations . | . . . . . . . . . . . . . Recycling Units . | . . . . . . . . . . . . . Scanalyzers . | . . . . . . . . . . . . . Garrison Access . | . . . . . . . . . . . . . Data Cores Recovered 4 | . . . . . . 2 1 . . 1 . . Used 2 | . . . . . . 2 . . . . . . Hacking Detections 43 | . 2 . . . 4 8 10 8 5 3 . 3 Full Trace Events 16 | . 1 . . . 3 2 6 3 1 . . . Feedback Events 1 | . . . . . 1 . . . . . . . Corruption 1 | . . . . . 1 . . . . . . . Feedback Blocked . | . . . . . . . . . . . . . Robot Schematics Acquired . | . . . . . . . . . . . . . Robots Built . | . . . . . . . . . . . . . Authchips . | . . . . . . . . . . . . . Time . | . . . . . . . . . . . . . Total Robot Build Rating . | . . . . . . . . . . . . . Part Schematics Acquired 2 | . . . . . . . 2 . . . . . Parts Built 4 | . . . . . . . 2 2 . . . . Authchips . | . . . . . . . . . . . . . Time 234 | . . . . . . . 125 62 47 . . . Total Part Build Rating 20 | . . . . . . . 10 10 . . . . Parts Repaired 3 | . . . . . . . . 1 . . . 2 Time 51 | . . . . . . . . 19 . . . 32 Parts Recycled . | . . . . . . . . . . . . . Recycled Matter . | . . . . . . . . . . . . . Retrieved Matter . | . . . . . . . . . . . . . Retrieved Components . | . . . . . . . . . . . . . Parts Scanalyzed 1 | . . . . . . . 1 . . . . . Part Schematics Acquired 1 | . . . . . . . 1 . . . . . Parts Damaged . | . . . . . . . . . . . . . Bothacking | -11 -10 -10 -10 -9 -8 -7 -6 -5 -4 -3 -2 -1 ------------ Run | Yrd Mat Min Exi Min Mat Fac Fac Fac Fac Res Res Acc Used RIF Installer . | . . . . . . . . . . . . . Robots Hacked . | . . . . . . . . . . . . . Non-combat . | . . . . . . . . . . . . . Combat . | . . . . . . . . . . . . . Robot Hacks Applied . | . . . . . . . . . . . . . Relay Couplers Released . | . . . . . . . . . . . . . Fabnet Peak Effective % . | . . . . . . . . . . . . . Robots Rewired . | . . . . . . . . . . . . . Allies Hacked . | . . . . . . . . . . . . . Hacks Repelled . | . . . . . . . . . . . . . Allies | -11 -10 -10 -10 -9 -8 -7 -6 -5 -4 -3 -2 -1 -------- Run | Yrd Mat Min Exi Min Mat Fac Fac Fac Fac Res Res Acc Total Allies 8 | . . 3 . 1 . 2 . 1 1 . . . Largest Group 3 | . . 3 3 3 . 1 1 1 2 . . . Highest-Rated Group 55 | . . 40 40 40 . 10 10 10 55 . . . Highest-Rated Ally 45 | . . 16 16 31 . 10 10 10 45 . . . Total Orders . | . . . . . . . . . . . . . Ally Attacks 37 | . . . . 37 . . . . . . . . Total Damage 426 | . . . . 426 . . . . . . . . Kills 9 | . . . . 9 . . . . . . . . Allies Corrupted . | . . . . . . . . . . . . . Allies Melted . | . . . . . . . . . . . . . Intel | -11 -10 -10 -10 -9 -8 -7 -6 -5 -4 -3 -2 -1 ------- Run | Yrd Mat Min Exi Min Mat Fac Fac Fac Fac Res Res Acc Robot Analysis Total 5 | . 2 . . . . . 1 1 . 1 . . Derelict Logs Recovered 2 | . . 1 . 1 . . . . . . . . Drone Launches . | . . . . . . . . . . . . . Drone Recoveries . | . . . . . . . . . . . . . Exploration | -11 -10 -10 -10 -9 -8 -7 -6 -5 -4 -3 -2 -1 ------------- Run | Yrd Mat Min Exi Min Mat Fac Fac Fac Fac Res Res Acc Turns Passed 7259 | 65 271 172 658 948 1715 506 1302 323 230 434 212 423 Spaces Moved 8668 | 47 147 106 411 531 848 1210 2173 675 535 750 538 697 Core 1 | 1 . . . . . . . . . . . . Treads 2043 | . 147 106 411 531 848 . . . . . . . Legs 46 | 46 . . . . . . . . . . . . Wheels . | . . . . . . . . . . . . . Hover . | . . . . . . . . . . . . . Flight 6578 | . . . . . . 1210 2173 675 535 750 538 697 Fastest Speed 24 | 50 160 160 160 160 152 27 27 26 24 24 25 25 Average Speed 58 | 118 160 160 160 160 157 27 27 26 24 28 25 25 Slowest Speed 240 | 120 160 160 160 160 240 28 28 29 24 30 29 37 Overloaded Moves . | . . . . . . . . . . . . . Propulsion Burnouts . | . . . . . . . . . . . . . Robots Hopped 19 | . . . . . . 4 13 . . 1 1 . Cave-ins Triggered 1 | . . . . . . . . . . . . 1 Exploration Rate (%) 37 | 3 30 30 90 94 65 34 44 24 16 21 24 13 Regions Visited 12 Branch Regions 3 Pre-discovered Areas 1 | . . 1 . . . . . . . . . . Known Exits Taken 8 | . 1 . . . 1 1 1 1 1 1 1 . Unknown Exits Taken 4 | 1 . 1 1 1 . . . . . . . . Scrap Searched 2 | . . . . 2 . . . . . . . . Spaces Dug 105 | . . . . . 1 10 37 10 8 14 7 18 Terrain Destroyed 362 | . . . . 9 153 10 37 10 8 62 7 66 Melee 105 | . . . . . 1 10 37 10 8 14 7 18 Projectile . | . . . . . . . . . . . . . AOE 257 | . . . . 9 152 . . . . 48 . 48 Terrain Rammed . | . . . . . . . . . . . . . Walls Destroyed . | . . . . . . . . . . . . . Machines Disabled . | . . . . . . . . . . . . . Actions | -11 -10 -10 -10 -9 -8 -7 -6 -5 -4 -3 -2 -1 --------- Run | Yrd Mat Min Exi Min Mat Fac Fac Fac Fac Res Res Acc Total 10341 | 55 175 109 412 609 1073 1335 2748 797 620 919 587 902 Wait 1133 | . 12 3 . 39 50 58 516 101 71 118 16 149 Move 8617 | 46 146 105 410 530 847 1201 2147 674 534 747 535 695 Hop 18 | . . . . . . 4 12 . . 1 1 . Pick Up 61 | 5 8 1 1 10 12 8 3 2 2 5 1 3 Fast Attach 19 | 3 . . . 1 6 4 . 1 . . 2 2 Attach 50 | 1 4 . . 1 10 14 3 3 3 3 3 5 Detach 12 | . 1 . . . . 8 . . . 1 1 1 Swap 31 | . . . . 3 12 2 4 5 . 4 1 . Drop 40 | . . . . 7 14 10 3 1 . 5 . . Fire 138 | . 4 . . 17 107 . . . . 5 . 5 Melee 189 | . . . . . 15 26 60 10 10 30 17 21 Ram . | . . . . . . . . . . . . . Kick . | . . . . . . . . . . . . . Crush 1 | . . . . 1 . . . . . . . . Escape Stasis 31 | . . . . . . . . . . . 10 21 Rewire 1 | . . . 1 . . . . . . . . . Trap . | . . . . . . . . . . . . . Miscellaneous . | . . . . . . . . . . . . . Route ------- -11/Scrapyard -10/Materials (discovered 2 exits: *Min x2) -10/Mines -10/Exiles -9/Mines -8/Materials (discovered 4 exits: *Fac x3 / Sto) -7/Factory (discovered 5 exits: *Fac x4 / *Low) -6/Factory (discovered 7 exits: *Fac x4 / *Low x2 / *Ext) -5/Factory (discovered 5 exits: *Fac x4 / *Upp) -4/Factory (discovered 4 exits: *Res x4) -3/Research (discovered 3 exits: *Res x3) -2/Research -1/Access To Epsilon Eridani History --------- Turn | Location | Event 18 | -11/Scrapyard | Discovered new exit (range 15) 66 | -11/Scrapyard | Entered Materials 262 | -10/Materials | Identified exit to Mines 305 | -10/Materials | Build established: Mutant 337 | -10/Materials | Entered Mines 344 | -10/Mines | Received a Rocket Launcher from a helpful Derelict 465 | -10/Mines | Assisted by bots powering up and referring to "LRC-V3" 494 | -10/Mines | Deemed a non-threat by the Exiles lab entrance 495 | -10/Mines | Discovered new exit (range 5) 509 | -10/Mines | Entered Exiles 509 | -10/Exiles | Accompanied by 3 allies 548 | -10/Exiles | Met 8R-AWN 583 | -10/Exiles | Met EX-HEX 629 | -10/Exiles | Met EX-BIN 652 | -10/Exiles | Aligned with FarCom system 653 | -10/Exiles | Given EX-Vault access code 692 | -10/Exiles | Opened EX-Vault 703 | -10/Exiles | Found Cloak of Protection 734 | -10/Exiles | Warned to stay clear of 0b10 Research branches 784 | -10/Exiles | Met EX-DEC 858 | -10/Exiles | Visited The Gauntlet 1150 | -10/Exiles | Discovered new exit (range 14) 1167 | -10/Exiles | Left Exiles lab with Cloak of Protection 1167 | -10/Exiles | Entered Mines 1167 | -9/Mines | Accompanied by 3 allies 1172 | -9/Mines | Met a Derelict bent on vengeance 1428 | -9/Mines | Assembled infested the area 1433 | -9/Mines | Assisted by a Guerilla fighting off Assembled 1484 | -9/Mines | Lost 4 allies 1600 | -9/Mines | Received a Mining Laser from a helpful Derelict 1675 | -9/Mines | Met a Derelict who couldn't figure out how to use a Trap Extractor 2041 | -9/Mines | Discovered new exit (range 11) 2115 | -9/Mines | Entered Materials 2115 | -8/Materials | Evolved 4 slots: Propulsion x1, Utility x3 2116 | -8/Materials | Identified exit to Storage 2812 | -8/Materials | Identified exit to Factory 3325 | -8/Materials | Build established: Skirmisher 3332 | -8/Materials | Destroyed 8 combat bots 3803 | -8/Materials | Core integrity fell below 50% 3830 | -8/Materials | Entered Factory 3830 | -7/Factory | Evolved 2 slots: Propulsion x1, Utility x1 3856 | -7/Factory | Lost 10 parts (1p3n1u5w) 3885 | -7/Factory | Identified exit to DSF 4141 | -7/Factory | Discovered new exit (range 9) 4143 | -7/Factory | Identified exit to Lower Caves 4197 | -7/Factory | Identified exit to Factory 4336 | -7/Factory | Entered another Factory area 4336 | -6/Factory | Accompanied by 1 ally 4336 | -6/Factory | Evolved 2 slots: Utility x2 4382 | -6/Factory | Identified exit to DSF 4396 | -6/Factory | Build established: Hacker-Scout 4441 | -6/Factory | Discovered new exit (range 5) 4445 | -6/Factory | Identified exit to Lower Caves 4652 | -6/Factory | Discovered exit to Lower Caves (range 13) 4662 | -6/Factory | Identified exit to Factory 5389 | -6/Factory | Fabricated Imp. Hacking Suite? 5442 | -6/Factory | Fabricated Imp. Hacking Suite? 5484 | -6/Factory | Discovered new exit (range 11) 5487 | -6/Factory | Identified exit to Extension 5638 | -6/Factory | Entered another Factory area 5638 | -5/Factory | Evolved 2 slots: Propulsion x1, Utility x1 5660 | -5/Factory | Build established: Hacker-Ninja 5761 | -5/Factory | Fabricated Imp. Hacking Suite (x1) 5786 | -5/Factory | Discovered new exit (range 5) 5787 | -5/Factory | Identified exit to Upper Caves 5887 | -5/Factory | Fabricated Imp. Hacking Suite (x1) 5916 | -5/Factory | Repaired Imp. Light Armor Plating 5941 | -5/Factory | Identified exit to Factory 5961 | -5/Factory | Entered another Factory area 5961 | -4/Factory | Accompanied by 1 ally 5961 | -4/Factory | Evolved 2 slots: Power x1, Propulsion x1 6001 | -4/Factory | Identified exit to Research 6135 | -4/Factory | Build established: Hacker-Scout 6191 | -4/Factory | Entered Research 6191 | -3/Research | Evolved 2 slots: Utility x2 6486 | -3/Research | Identified exit to Research 6535 | -3/Research | Central database locked down 6625 | -3/Research | Entered another Research area 6625 | -2/Research | Evolved 2 slots: Propulsion x1, Utility x1 6680 | -2/Research | Spotted B-90 Cyclops 6836 | -2/Research | Discovered new exit (range 4) 6837 | -2/Research | Identified exit to Access 6837 | -2/Research | Entered Access 6837 | -1/Access | Evolved 2 slots: Utility x2 6981 | -1/Access | Repaired Lgt. Antimatter Reactor 6994 | -1/Access | Repaired Cesium-ion Thruster 7148 | -1/Access | Build established: Wizard-Ninja 7169 | -1/Access | Spotted B-99 Colossus 7169 | -1/Access | Spotted B-99 Colossus 7215 | -1/Access | Crushed by falling debris 7258 | -1/Access | Discovered new exit (range 5) 7260 | -1/Access | Identified exit to Surface 7260 | *** | Escaped! Last Messages --------------- Destroyed Lgt. Antimatter Reactor. S-43 Plague destroyed. >> Machine Analyzer network decryption results: Terminal x1 Xenon Bombardment Thruster destroyed. Cesium-ion Thruster destroyed. Destroyed Cesium-ion Thruster. Xenon Bombardment Thruster destroyed. System corrupted: Component data lost. Field Propulsion Drive destroyed. Machine Analyzer destroyed. The unstable cave ceiling collapses. Connecting with Terminal... >>Open(Door) Sealed Barrier opened. The Access Shell folds into the floor. EXIT=FOUND System corrupted: Substantial component data lost. EXIT=IDENTIFIED: SURFACE Map ----- +----------------------------------------------------+ | ????????## # ##???#### ## | | ???????? # """""" ##???#### ## | | ?????????? =# """""" ???? ##???## / | | ?????????# ## """"""???????????## # | | ?????????## ### # """"""????? ##???##^ # | | ?????????## ##### # """""" ##???## # | | ?????????## ##### # ##???## # | | ?????????## ##?## + ##???## # | | ????????? # ##?## ##########+###??###???## # | | ????????? # ##### # ##????????## # | | ????????? # ##### # ##????????## # | | ????????? + # """"" ????????????## + | | ????????? # + ""T"" ? ##????????## # | | ????????? # ######## ##????????## # | | ????????? # ######## ##????????## # | | ????????? # s##?????? ##????????## ## | | ?????????## p##??????#############????????## | | ?????????## ##???################????????## | | ?????????## ###################??????????## | | ?????????## ####### ###########??????????## | | ?????????## """T""" ""??????????## "# | | ?????????## """ """ "????BB?????## ## | | ?????????## "????BB?????## ## | | ?????????## "??????????? ?? | | ?????????## "" "?????????? ????? | | ?????????## @" "???????? ?????? | | ?????????## "???????? ? ??????? | | ?????????## "????BB????????????? | | ?????????## "????BB????????????? | | ?????????## ""?????????????????? | | ?????????## ####### ###########?????????????????? | | ?????????## ###################?????????????????? | | ?????????## ##???#####??????????????????????????? | | ?????????## ????????????????????????????????????? | | ????????? # ????????????????????????????????????? | | ????????? # ????????????????????????????????????? | | ????????? # ????????????????????????????????????? | | ????????? # ????????????????????????????????????? | | ????????? # ????????????????????????????????????? | | ????????? # ????????????????????????????????????? | | ????????? # ????????????????????????????????????? | | ????????? # ?????????????????????????????????????? | | ?????????????????????????????????????????????????? | | ?????????????????????????????????????????????????? | | ?????????????????????????????????????????????????? | | ?????????????????????????????????????????????????? | | ?????????????????????????????????????????????????? | | ?????????????????????????????????????????????????? | | ?????????????????????????????????????????????????? | | ?????????????????????????????????????????????????? | +----------------------------------------------------+ Best States ------------- Heat Dissipation 52 Energy Generation 39 Energy Capacity 275 Matter Stores 300 Matter Capacity 300 Sight Range 20 Terrain Scan Density 10 Cloak Strength 5 Additional Mass Support 6 Armor Coverage 150 Propulsion Shielding 66 Evasion (%) 65 Targeting Accuracy 13 Recoil Reduction 3 Offensive Hacking 66 Defensive Hacking 10 Item Schematics ----------------- Imp. Hacking Suite | -6/Factory | Hacked System Shield | -6/Factory | Scanalyzed Robot Schematics ------------------ None Fabricated ------------ Imp. Hacking Suite | x1 | -6/Factory Imp. Hacking Suite | x1 | -6/Factory Imp. Hacking Suite | x1 | -5/Factory Imp. Hacking Suite | x1 | -5/Factory Alien Tech Used ----------------- None Achievements -------------- Armchair Analyst Dramatic Entrance Challenges ------------ None Game ------ Seed PhaseGravityArachnoskeleton Manual? 0 Play Time 02:14:52 Cumulative 25.6 hours Start 2024.04.12 @ 23:30:29 End 2024.04.13 @ 02:40:32 Sessions 3 Manual Loads 0 Difficulty Rogue Special Mode None Game No. 26 Rogue 26 Adventurer 0 Explorer 0 Win Type 0 Total 2 Types 2/0/0/0/0/0/0/0/0 Lore% 24 Gallery% 30 Achievement% 28 Wizard Run 0 Options --------- Layout 1 ASCII 0 Keyboard 0 Movement Arrows Keybinds 0 Fullscreen 1 Font 24/Smallcaps Map View 50x35 Zoom Use 0% Tactical HUD 0 Map Filters NONE Filters NONE Steam 1 RUN: f02bdc75-5327-43a6-b964-b2037ab91e9c